bitfinex-derivatives/quotes_BTCF0:USTF0_20241203
["timestamp","ask_amount","ask_price","bid_price","bid_amount"]
[1733209013404,0.5172607,95921.0,95920.0,5.4e-07]
[1733209013605,0.5182607,95921.0,95920.0,5.4e-07]
[1733209014190,0.052123,95917.0,95916.0,0.00256054]
[1733209014790,0.156376,95917.0,95916.0,0.00256054]
[1733209015497,0.156376,95917.0,95904.0,0.0156]
[1733209015498,0.052128,95905.0,95904.0,0.0156]
[1733209015699,0.052128,95905.0,95900.0,0.1]
[1733209015700,0.85888,95905.0,95900.0,0.1]
[1733209016303,0.05213,95901.0,95900.0,0.1]
[1733209016599,0.41213,95901.0,95900.0,0.1]
[1733209016805,0.41225585,95901.0,95900.0,0.1]
[1733209017103,0.65380624,95901.0,95900.0,0.1]
[1733209017499,0.65480624,95901.0,95900.0,0.1]
[1733209018200,0.65580624,95901.0,95900.0,0.1]
[1733209018412,0.67519078,95901.0,95900.0,0.1]
[1733209018907,0.052135,95891.0,95890.0,0.0156]
[1733209019110,0.05214,95883.0,95878.0,0.0303]
[1733209019308,0.41305541,95883.0,95878.0,0.0303]
[1733209019617,0.87733015,95883.0,95878.0,0.0303]
[1733209019799,0.87733015,95883.0,95868.0,0.0156]
[1733209020512,0.87733015,95883.0,95882.0,0.00284679]
[1733209020513,0.89747347,95883.0,95882.0,0.00284679]
[1733209021396,1.03479347,95883.0,95882.0,0.00284679]
[1733209021809,1.03579347,95883.0,95882.0,0.00284679]
[1733209022202,0.67579347,95883.0,95882.0,0.00284679]
[1733209022902,0.76886347,95883.0,95882.0,0.00284679]
[1733209023806,0.78973715,95883.0,95882.0,0.00284679]
[1733209025401,0.78973715,95883.0,95868.0,0.0156]
[1733209025402,0.052147,95869.0,95868.0,0.0156]
[1733209025610,0.052151,95861.0,95860.0,0.00103]
[1733209025915,0.412951,95861.0,95860.0,0.00103]
[1733209026210,0.052153,95859.0,95858.0,7.954e-05]
[1733209026504,0.189473,95859.0,95858.0,7.954e-05]
[1733209026912,0.76412422,95859.0,95858.0,7.954e-05]
[1733209027301,0.76416422,95859.0,95858.0,7.954e-05]
[1733209027607,0.76528959,95859.0,95858.0,7.954e-05]
[1733209028705,0.05216,95845.0,95844.0,0.0156]
[1733209028905,0.05216,95845.0,95841.0,0.0652]
[1733209028906,0.052162,95842.0,95841.0,0.0652]
[1733209029309,0.052165,95836.0,95833.0,0.0315]
[1733209029498,0.189525,95836.0,95834.0,0.0658]
[1733209029703,0.7208,95835.0,95834.0,0.0658]
[1733209030104,0.82514601,95835.0,95834.0,0.0658]
[1733209030309,0.82514601,95835.0,95821.0,0.0156]
[1733209030511,0.82514601,95835.0,95790.0,8.128e-05]
[1733209030512,0.052173,95823.0,95822.0,0.0329]
[1733209030704,0.550333,95823.0,95822.0,0.0329]
[1733209030904,0.550333,95823.0,95813.0,0.0333]
[1733209030905,0.052177,95814.0,95813.0,0.0333]
[1733209031108,0.05218,95809.0,95807.0,0.0329]
[1733209031310,0.49816,95814.0,95801.0,0.0329]
[1733209031311,0.052183,95802.0,95801.0,0.0329]
[1733209031608,0.412983,95802.0,95801.0,0.0329]
[1733209031804,0.772983,95802.0,95795.0,0.0665]
[1733209032204,0.10438249,95801.0,95795.0,0.0665]
[1733209032412,0.10438249,95801.0,95800.0,0.088]
[1733209033105,0.24174249,95801.0,95800.0,0.088]
[1733209033505,0.24178249,95801.0,95800.0,0.088]
[1733209033709,0.1374,95801.0,95800.0,0.088]
[1733209034008,0.36240001,95802.0,95800.0,0.088]
[1733209034219,0.3618,95802.0,95800.0,0.088]
[1733209034512,0.053184,95801.0,95800.0,0.088]
[1733209035101,0.052189,95791.0,95790.0,8.128e-05]
[1733209035317,0.550389,95791.0,95790.0,8.128e-05]
[1733209035815,0.550389,95791.0,95774.0,0.0182]
[1733209035816,0.052197,95776.0,95774.0,0.0182]
[1733209036002,0.052197,95776.0,95744.0,0.1374]
[1733209036003,0.4982,95775.0,95763.0,0.0302]
[1733209036209,0.3608,95766.0,95763.0,0.0302]
[1733209036418,0.052204,95764.0,95763.0,0.0302]
[1733209036614,0.05228295,95764.0,95763.0,0.0302]
[1733209037714,0.29814686,95764.0,95763.0,0.0302]
[1733209037922,0.29914686,95764.0,95763.0,0.0302]
[1733209039012,0.29914686,95764.0,95747.0,0.0182]
[1733209039013,0.24694286,95764.0,95747.0,0.0182]
[1733209039217,0.24694286,95764.0,95747.0,0.03]
[1733209039218,0.052212,95748.0,95747.0,0.03]
[1733209039409,0.1007736,95748.0,95747.0,0.03]
[1733209040212,0.052212,95748.0,95747.0,0.03]
[1733209040418,0.193652,95748.0,95747.0,0.03]
[1733209040921,0.2982178,95748.0,95747.0,0.03]
[1733209041322,0.2982178,95748.0,95732.0,0.0304]
[1733209041323,0.05222,95734.0,95732.0,0.0304]
[1733209041625,0.50224,95733.0,95732.0,0.0304]
[1733209041923,0.3608,95733.0,95732.0,0.0304]
[1733209042139,0.3109,95733.0,95732.0,0.082621]
[1733209042325,0.3712,95751.0,95732.0,0.443421]
[1733209042527,0.0232,95749.0,95737.0,0.052218]
[1733209042736,0.001,95734.0,95732.0,0.6912]
[1733209043024,0.0232,95749.0,95739.0,0.052217]
[1733209043212,0.057403,95765.0,95743.0,0.3608]
[1733209043213,0.0104,95759.0,95743.0,0.3608]
[1733209043418,0.00011924,95758.0,95743.0,0.3608]
[1733209043727,0.00011924,95758.0,95751.0,0.41301]
[1733209044120,0.3712,95770.0,95751.0,0.41301]
[1733209044424,0.413,95770.0,95751.0,0.41301]
[1733209044627,0.052201,95769.0,95751.0,0.41301]
[1733209044827,0.02091136,95774.0,95751.0,0.3608]
[1733209044828,0.16239136,95774.0,95751.0,0.3608]
[1733209045128,0.1045274,95773.0,95751.0,0.3608]
[1733209045334,0.001,95759.0,95751.0,0.3608]
[1733209045626,0.001,95759.0,95748.0,0.07597497]
[1733209045627,0.001,95759.0,95752.0,0.14148]
[1733209045830,0.052207,95756.0,95752.0,0.14148]
[1733209046032,0.412207,95756.0,95752.0,0.14148]
[1733209046219,0.36,95756.0,95752.0,0.14148]
[1733209046420,0.36,95756.0,95753.0,0.0333]
[1733209046724,0.052204,95762.0,95753.0,0.0333]
[1733209046929,0.001,95756.0,95753.0,0.0333]
[1733209047320,0.3608,95764.0,95754.0,0.0308]
[1733209047527,0.36,95769.0,95758.0,0.052205]
[1733209047724,0.36,95769.0,95763.0,0.3608]
[1733209047924,9.967e-05,95773.0,95767.0,0.0522]
[1733209048129,9.967e-05,95773.0,95771.0,0.3608]
[1733209048324,9.967e-05,95773.0,95771.0,0.412998]
[1733209048629,9.967e-05,95773.0,95771.0,0.854478]
[1733209048833,9.967e-05,95773.0,95771.0,0.554478]
[1733209049126,0.31,95772.0,95771.0,0.554478]
[1733209049423,9.967e-05,95773.0,95771.0,0.50228]
[1733209050525,9.967e-05,95773.0,95772.0,0.052196]
[1733209050919,9.967e-05,95773.0,95771.0,0.50692]
[1733209051120,0.11760567,95773.0,95771.0,0.004]
[1733209052218,0.06540967,95773.0,95771.0,0.004]
[1733209052418,0.06640967,95773.0,95771.0,0.004]
[1733209053021,0.052196,95772.0,95771.0,0.004]
[1733209053419,0.06640967,95773.0,95771.0,0.004]
[1733209053622,0.06640967,95773.0,95731.0,0.19547279]
[1733209053623,0.06640967,95773.0,95751.0,0.0104]
[1733209053624,0.54329465,95772.0,95751.0,0.0104]
[1733209053825,0.54329465,95772.0,95738.0,0.00068]
[1733209053826,0.052207,95751.0,95738.0,0.00068]
[1733209054020,0.052222,95724.0,95723.0,0.30912132]
[1733209054231,0.55458582,95724.0,95723.0,0.30912132]
[1733209054422,0.052224,95720.0,95719.0,9.805e-05]
[1733209054629,0.633024,95720.0,95719.0,9.805e-05]
[1733209055119,0.41355773,95720.0,95719.0,9.805e-05]
[1733209055530,0.46578173,95720.0,95719.0,9.805e-05]
[1733209056520,0.46678173,95720.0,95719.0,9.805e-05]
[1733209056728,0.57125365,95720.0,95719.0,9.805e-05]
[1733209057418,0.57125365,95720.0,95707.0,0.18547279]
[1733209057621,0.052232,95704.0,95703.0,0.0026]
[1733209057827,0.193752,95704.0,95702.0,0.00144]
[1733209058026,0.052232,95704.0,95702.0,0.00144]
[1733209058230,0.14152,95703.0,95702.0,0.00144]
[1733209058932,0.052232,95704.0,95702.0,0.00144]
[1733209059326,0.199832,95704.0,95702.0,0.00144]
[1733209059524,0.052232,95704.0,95702.0,0.00144]
[1733209059729,0.001,95703.0,95702.0,0.00144]
[1733209061527,0.052232,95704.0,95702.0,0.00144]
[1733209061836,0.053232,95704.0,95702.0,0.00144]
[1733209062432,0.001,95703.0,95702.0,0.00144]
[1733209063239,0.001,95704.0,95702.0,0.36224]
[1733209063444,0.001,95704.0,95703.0,0.14764]
[1733209064158,0.013,95707.0,95703.0,0.14764]
[1733209064436,0.013,95707.0,95706.0,0.3608]
[1733209064628,0.0104,95709.0,95707.0,0.052231]
[1733209064826,0.052227,95713.0,95708.0,0.05223]
[1733209065031,0.052223,95721.0,95712.0,0.3608]
[1733209065333,0.052223,95721.0,95720.0,0.3608]
[1733209065939,0.199848,95749.0,95720.0,0.3608]
[1733209066233,0.052223,95721.0,95720.0,0.3608]
[1733209067637,0.052223,95721.0,95712.0,0.3608]
[1733209067638,0.052226,95715.0,95714.0,0.14764]
[1733209068738,0.052228,95712.0,95711.0,0.43972]
[1733209068928,0.052233,95703.0,95701.0,0.0312]
[1733209069133,0.052233,95703.0,95702.0,0.14908]
[1733209069334,0.052233,95703.0,95702.0,0.00144]
[1733209069640,0.052233,95703.0,95702.0,0.14908]
[1733209070139,0.052233,95703.0,95702.0,0.00144]
[1733209070344,0.052233,95703.0,95688.0,0.07315603]
[1733209070345,0.00012123,95702.0,95689.0,0.06021979]
[1733209070650,0.00012123,95702.0,95666.0,0.0052]
[1733209070651,0.052245,95681.0,95666.0,0.0052]
[1733209070830,0.052251,95669.0,95659.0,0.2679821]
[1733209071038,0.052251,95669.0,95659.0,0.02090778]
[1733209071241,0.052251,95669.0,95655.0,0.3608]
[1733209071242,0.052251,95669.0,95658.0,0.14764]
[1733209071442,0.052251,95669.0,95655.0,0.3608]
[1733209072149,0.052251,95669.0,95656.0,0.14764]
[1733209072334,0.052251,95669.0,95668.0,0.36089712]
[1733209072534,0.0104,95672.0,95669.0,0.052251]
[1733209072733,0.0104,95672.0,95668.0,0.80857712]
[1733209072734,0.052246,95679.0,95668.0,1.17001712]
[1733209072939,0.052246,95679.0,95678.0,0.3608]
[1733209074337,0.3608,95690.0,95675.0,0.14768]
[1733209074535,0.052247,95676.0,95675.0,0.14768]
[1733209075441,0.052247,95676.0,95668.0,0.36145712]
[1733209075640,0.052247,95676.0,95675.0,0.001]
[1733209075841,0.0104,95680.0,95675.0,0.001]
[1733209076043,0.0104,95682.0,95679.0,0.3608]
[1733209076434,0.0104,95682.0,95680.0,0.052245]
[1733209076741,0.0104,95682.0,95679.0,0.3608]
[1733209076742,0.052239,95691.0,95681.0,0.14768]
[1733209076945,0.052236,95698.0,95692.0,0.052238]
[1733209077138,0.14768,95711.0,95693.0,0.0104]
[1733209077342,0.052237,95695.0,95693.0,0.0104]
[1733209077538,0.052237,95695.0,95693.0,0.15808]
[1733209077937,0.3608,95713.0,95693.0,0.15808]
[1733209078138,0.052235,95700.0,95693.0,0.15808]
[1733209078438,0.3608,95713.0,95693.0,0.15808]
[1733209078439,0.272235,95699.0,95694.0,0.0324]
[1733209078641,0.22,95699.0,95698.0,0.052235]
[1733209078951,0.3608,95723.0,95698.0,0.313765]
[1733209079142,0.3608,95723.0,95699.0,0.052235]
[1733209079341,0.052229,95711.0,95699.0,0.052235]
[1733209079539,0.052229,95710.0,95699.0,0.052235]
[1733209079735,0.0026,95709.0,95700.0,0.18214118]
[1733209079945,0.0026,95709.0,95706.0,0.413031]
[1733209080151,0.0026,95709.0,95707.0,0.19991]
[1733209080446,0.052226,95716.0,95708.0,0.05223]
[1733209080648,0.22,95722.0,95708.0,0.06263]
[1733209080649,0.07163,95709.0,95708.0,0.06263]
[1733209081151,0.07163,95709.0,95708.0,0.0104]
[1733209081346,0.07263,95709.0,95708.0,0.0104]
[1733209081944,0.07263,95709.0,95708.0,0.15808]
[1733209082548,0.07263,95709.0,95708.0,0.0104]
[1733209082847,0.07263,95709.0,95708.0,0.08217]
[1733209083036,0.07263,95709.0,95705.0,0.43988]
[1733209083037,0.052231,95706.0,95705.0,1e-06]
[1733209083244,0.052239,95692.0,95691.0,0.0105]
[1733209083441,0.052232,95705.0,95679.0,0.0332]
[1733209083442,0.3608,95693.0,95679.0,0.0332]
[1733209083741,0.052245,95682.0,95680.0,0.14768]
[1733209084344,0.052245,95680.0,95679.0,0.0332]
[1733209084555,0.413045,95680.0,95679.0,0.0332]
[1733209085348,0.413045,95680.0,95679.0,0.009]
[1733209085854,0.41312924,95680.0,95678.0,0.07316]
[1733209086053,0.41312924,95680.0,95631.0,0.0319]
[1733209086054,0.052248,95676.0,95631.0,0.0319]
[1733209086256,0.87033688,95680.0,95631.0,0.0319]
[1733209086257,0.3608,95637.0,95631.0,0.0319]
[1733209086551,0.3608,95637.0,95636.0,0.26798584]
[1733209087253,0.3608,95637.0,95636.0,0.24707432]
[1733209088149,0.3608,95637.0,95636.0,0.25407432]
[1733209088150,0.3618,95637.0,95636.0,0.25407432]
[1733209088650,0.36088035,95637.0,95636.0,0.24707432]
[1733209088843,0.41414835,95637.0,95636.0,0.25307432]
[1733209090356,0.36088035,95637.0,95636.0,0.24707432]
[1733209090652,0.36088035,95637.0,95635.0,0.02715]
[1733209090653,0.00108035,95637.0,95635.0,0.02715]
[1733209091247,0.00108035,95637.0,95636.0,0.14988]
[1733209092548,0.05334835,95637.0,95636.0,0.14988]
[1733209093061,0.00108035,95637.0,95636.0,0.14988]
[1733209093261,0.00108035,95637.0,95636.0,0.51068]
[1733209093451,0.052253,95665.0,95636.0,0.81068]
[1733209093649,0.3608,95670.0,95648.0,0.3608]
[1733209093650,0.0157,95660.0,95648.0,0.3608]
[1733209093848,0.052254,95663.0,95649.0,0.14988]
[1733209094049,0.3608,95670.0,95649.0,0.14988]
[1733209094249,0.052259,95654.0,95649.0,0.14988]
[1733209094453,9.024e-05,95653.0,95649.0,0.14988]
[1733209094856,9.024e-05,95653.0,95644.0,0.3608]
[1733209095059,9.024e-05,95653.0,95645.0,0.14988]
[1733209095658,9.024e-05,95653.0,95647.0,0.052262]
[1733209095860,9.024e-05,95653.0,95647.0,0.054862]
[1733209096061,9.024e-05,95653.0,95647.0,0.0026]
[1733209096262,9.024e-05,95653.0,95652.0,0.41306]
[1733209096959,0.052251,95669.0,95652.0,0.6608]
[1733209097163,0.0105,95679.0,95666.0,0.052252]
[1733209097466,0.052248,95674.0,95667.0,0.14988]
[1733209097759,0.052246,95678.0,95668.0,0.052251]
[1733209097956,0.22013382,95677.0,95668.0,0.052251]
[1733209098152,0.22013382,95677.0,95672.0,0.052249]
[1733209098356,0.22013382,95677.0,95667.0,0.14988]
[1733209098357,0.22013382,95677.0,95674.0,0.052248]
[1733209098556,0.22013382,95677.0,95675.0,0.14988]
[1733209098557,0.052247,95676.0,95675.0,0.14988]
[1733209098955,0.052247,95676.0,95668.0,0.0328]
[1733209099154,0.052247,95676.0,95669.0,0.14988]
[1733209099662,0.22013382,95677.0,95672.0,0.413049]
[1733209099866,0.22013382,95677.0,95673.0,0.052248]
[1733209100250,0.052247,95676.0,95672.0,0.3658]
[1733209101057,0.052247,95676.0,95672.0,0.3608]
[1733209101259,0.052247,95676.0,95673.0,0.005]
[1733209101458,0.22113382,95677.0,95674.0,0.052248]
[1733209102655,0.052248,95675.0,95673.0,0.005]
[1733209103063,0.052248,95675.0,95674.0,0.14988]
[1733209103967,0.053248,95675.0,95674.0,0.14988]
[1733209104358,0.001,95675.0,95674.0,0.14988]
[1733209104669,0.22013382,95677.0,95674.0,0.14988]
[1733209104873,0.001,95675.0,95674.0,0.15488]
[1733209105861,0.001,95675.0,95674.0,0.005]
[1733209106263,0.001,95675.0,95674.0,0.15488]
[1733209106566,0.001,95675.0,95674.0,0.005]
[1733209106966,0.22,95675.0,95674.0,0.004]
[1733209108171,0.05225,95671.0,95670.0,0.0105]
[1733209108965,0.27225,95671.0,95670.0,0.0105]
[1733209110164,0.27225,95671.0,95670.0,0.0115]
[1733209110165,0.27325,95671.0,95670.0,0.0115]
[1733209110375,0.34573,95671.0,95670.0,0.0115]
[1733209111462,0.44199206,95671.0,95670.0,0.0115]
[1733209111668,0.44199206,95671.0,95657.0,0.0157]
[1733209111669,0.052257,95658.0,95657.0,0.0157]
[1733209111971,0.052257,95658.0,95648.0,0.00156816]
[1733209111972,0.052261,95650.0,95648.0,0.00156816]
[1733209112271,0.3608,95649.0,95648.0,0.00156816]
[1733209112768,0.3608,95649.0,95645.0,0.0026]
[1733209112769,0.052263,95646.0,95645.0,0.0026]
[1733209113363,0.272263,95646.0,95645.0,0.0026]
[1733209113967,0.36854697,95646.0,95645.0,0.0026]
[1733209114679,0.36862922,95646.0,95645.0,0.0026]
[1733209116068,0.14862922,95646.0,95645.0,0.0026]
[1733209116471,0.36862922,95646.0,95645.0,0.0026]
[1733209117671,0.29854922,95646.0,95645.0,0.0026]
[1733209118578,0.14862922,95646.0,95645.0,0.0026]
[1733209118878,0.14863656,95646.0,95645.0,0.0026]
[1733209119572,0.05234525,95646.0,95645.0,0.0026]
[1733209120169,0.05234525,95646.0,95645.0,0.02984]
[1733209121870,0.05234525,95646.0,95645.0,0.01416651]
[1733209122077,8.225e-05,95646.0,95645.0,0.01416651]
[1733209123280,0.3608,95658.0,95647.0,0.052262]
[1733209123667,0.3608,95658.0,95648.0,0.0313]
[1733209124276,9.48e-05,95657.0,95649.0,0.15024]
[1733209124475,0.09626742,95656.0,95649.0,0.15024]
[1733209124696,9.48e-05,95657.0,95650.0,0.0333]
[1733209124886,0.0105,95667.0,95660.0,0.052255]
[1733209125073,0.09626152,95666.0,95661.0,0.15024]
[1733209125278,0.30838363,95668.0,95661.0,0.15024]
[1733209125481,0.221,95673.0,95661.0,0.15024]
[1733209125482,0.09626015,95667.0,95661.0,0.15024]
[1733209125677,0.22,95673.0,95664.0,0.052253]
[1733209125678,0.04636015,95666.0,95664.0,0.052253]
[1733209125978,0.00011109,95665.0,95664.0,0.052253]
[1733209126276,0.22,95673.0,95668.0,0.05225]
[1733209126592,0.272248,95673.0,95668.0,0.05225]
[1733209127286,0.272248,95673.0,95665.0,0.3608]
[1733209127287,7.409e-05,95670.0,95665.0,0.3608]
[1733209127474,0.05232409,95670.0,95665.0,0.3608]
[1733209128093,0.052252,95667.0,95665.0,0.3608]
[1733209128274,7.409e-05,95670.0,95665.0,0.3608]
[1733209128788,7.409e-05,95670.0,95668.0,0.052251]
[1733209128987,0.02365409,95671.0,95666.0,0.0325]
[1733209129186,0.02365409,95671.0,95670.0,0.05225]
[1733209129881,0.02265409,95671.0,95670.0,0.05225]
[1733209130082,0.02265409,95671.0,95667.0,0.3608]
[1733209130083,0.02269551,95671.0,95667.0,0.3608]
[1733209130291,0.02269551,95671.0,95668.0,0.05225]
[1733209130480,0.02269551,95671.0,95667.0,0.3608]
[1733209130686,0.02369551,95671.0,95667.0,0.3608]
[1733209131391,0.00104142,95671.0,95667.0,0.3608]
[1733209131584,0.05225,95670.0,95667.0,0.3608]
[1733209131795,0.00104142,95671.0,95668.0,0.202451]
[1733209132091,4.142e-05,95671.0,95668.0,0.202451]
[1733209132282,0.00104142,95671.0,95668.0,0.202451]
[1733209132682,0.00104142,95671.0,95668.0,0.052251]
[1733209132886,0.00104142,95671.0,95669.0,0.1502]
[1733209133194,0.00104142,95671.0,95670.0,0.05225]
[1733209133388,0.00104142,95671.0,95670.0,0.08385]
[1733209133789,0.00104142,95671.0,95670.0,0.0316]
[1733209134478,0.00104142,95671.0,95670.0,0.1818]
[1733209135284,0.09728495,95671.0,95670.0,0.1818]
[1733209135485,0.00104142,95671.0,95670.0,0.1818]
[1733209136393,0.09728549,95671.0,95670.0,0.1818]
[1733209136893,0.00104142,95671.0,95670.0,0.23405]
[1733209137190,0.00104142,95671.0,95670.0,0.08385]
[1733209137595,0.00104142,95671.0,95670.0,0.23405]
[1733209138884,0.02308,95672.0,95670.0,0.23405]
[1733209139496,0.001,95671.0,95670.0,0.23405]
[1733209140190,0.02408,95672.0,95670.0,0.23405]
[1733209140500,0.02408,95672.0,95670.0,0.08385]
[1733209140790,0.02408,95672.0,95671.0,0.1502]
[1733209141788,0.02408,95672.0,95670.0,0.084849]
[1733209141789,0.02308,95672.0,95670.0,0.084849]
[1733209141991,0.02308,95672.0,95671.0,0.15016]
[1733209142198,0.11932152,95672.0,95671.0,0.15016]
[1733209142706,0.02308,95672.0,95671.0,0.15016]
[1733209143297,0.02408,95672.0,95671.0,0.15216]
[1733209144790,0.02408,95672.0,95671.0,0.002]
[1733209144998,0.02408,95672.0,95666.0,1e-06]
[1733209144999,0.052249,95671.0,95666.0,1e-06]
[1733209145305,0.3608,95667.0,95666.0,1e-06]
[1733209145494,0.3608,95667.0,95654.0,0.0052]
[1733209145495,0.56951586,95667.0,95654.0,0.0052]
[1733209145804,0.56951586,95667.0,95638.0,0.15536]
[1733209145805,0.05226,95652.0,95644.0,0.0052]
[1733209145992,0.1485045,95652.0,95635.0,0.38551246]
[1733209146186,0.0962445,95652.0,95650.0,0.05226]
[1733209146396,0.0962445,95652.0,95647.0,0.3608]
[1733209146397,0.09627115,95652.0,95651.0,0.053828]
[1733209146787,0.04637115,95652.0,95651.0,0.053828]
[1733209146987,0.11247136,95666.0,95651.0,0.053828]
[1733209147189,0.11247136,95666.0,95665.0,0.413052]
[1733209147396,0.11247136,95666.0,95665.0,1.002532]
[1733209147600,0.33922199,95670.0,95668.0,0.052251]
[1733209148003,0.02308,95672.0,95665.0,0.95028]
[1733209148295,0.02308,95672.0,95671.0,0.052249]
[1733209149490,0.02408,95672.0,95671.0,0.052249]
[1733209149697,0.33922199,95690.0,95665.0,0.95128]
[1733209149896,0.33922199,95691.0,95687.0,0.3608]
[1733209150110,0.052238,95692.0,95688.0,0.15056]
[1733209150302,0.3608,95703.0,95688.0,0.15056]
[1733209150303,0.272236,95695.0,95688.0,0.15056]
[1733209150497,0.272236,95695.0,95692.0,0.052237]
[1733209150498,0.11244341,95694.0,95692.0,0.052237]
[1733209150693,0.33922199,95693.0,95692.0,0.052237]
[1733209150897,0.33922199,95694.0,95692.0,0.052237]
[1733209151203,0.11244091,95694.0,95693.0,0.15056]
[1733209151407,0.00041,95694.0,95693.0,0.15056]
[1733209152205,0.0966293,95694.0,95693.0,0.202797]
[1733209152400,0.0986293,95694.0,95693.0,0.202797]
[1733209153205,0.33922199,95700.0,95693.0,0.502797]
[1733209153406,0.33922199,95700.0,95699.0,0.413034]
[1733209153607,0.09620912,95700.0,95699.0,0.413034]
[1733209153816,0.09620674,95700.0,95699.0,0.413034]
[1733209154505,0.33922199,95715.0,95699.0,0.3608]
[1733209154713,0.0157,95725.0,95716.0,0.052224]
[1733209154899,0.09630628,95719.0,95717.0,0.15056]
[1733209155105,0.09619628,95718.0,95717.0,0.15056]
[1733209155500,0.09619348,95718.0,95717.0,0.18136]
[1733209155710,0.09619311,95718.0,95717.0,0.18136]
[1733209155908,0.09619311,95718.0,95717.0,0.0308]
[1733209156105,0.09619311,95718.0,95717.0,0.15056]
[1733209156508,0.00011,95719.0,95717.0,0.15056]
[1733209156806,0.00011,95719.0,95718.0,0.15052]
[1733209157905,0.22011,95719.0,95718.0,0.15052]
[1733209158104,0.22811,95719.0,95718.0,0.15152]
[1733209159113,0.00811,95719.0,95718.0,0.15152]
[1733209159994,0.00811,95719.0,95718.0,0.001]
[1733209160197,0.00811,95719.0,95718.0,0.203743]
[1733209160402,1e-08,95723.0,95721.0,0.052222]
[1733209160699,1e-08,95723.0,95722.0,0.8]
[1733209161298,1e-08,95723.0,95722.0,0.9584]
[1733209161502,0.00100001,95723.0,95722.0,0.9584]
[1733209161907,0.22100001,95723.0,95722.0,0.9584]
[1733209162414,0.00100001,95723.0,95722.0,0.9584]
[1733209162603,0.00100001,95723.0,95722.0,0.3608]
[1733209162604,0.05322101,95723.0,95722.0,0.3608]
[1733209163608,0.00100001,95723.0,95722.0,0.3608]
[1733209164319,0.00100001,95723.0,95722.0,0.5192]
[1733209166207,0.00100001,95723.0,95722.0,0.571421]
[1733209173513,0.00100001,95723.0,95722.0,0.604021]
[1733209173905,0.00100001,95723.0,95722.0,0.63252751]
[1733209177533,0.00100001,95723.0,95722.0,0.46652751]
[1733209177713,0.00100001,95723.0,95722.0,0.63252751]
[1733209179616,0.00100001,95723.0,95722.0,0.46652751]
[1733209179811,0.00100001,95723.0,95722.0,0.63252751]
[1733209180313,0.00100001,95723.0,95722.0,0.38170651]
[1733209180513,0.001,95723.0,95718.0,0.0104]
[1733209180714,0.031,95722.0,95718.0,0.0104]
[1733209180913,0.052223,95719.0,95718.0,0.0104]
[1733209181107,0.031,95722.0,95718.0,0.1764]
[1733209181513,0.031,95722.0,95720.0,0.052222]
[1733209182318,0.031,95722.0,95721.0,0.166]
[1733209182517,0.12720055,95722.0,95721.0,0.166]
[1733209182918,0.031,95722.0,95721.0,0.166]
[1733209183918,0.032,95722.0,95721.0,0.166]
[1733209184521,0.0016,95722.0,95721.0,0.166]
[1733209186425,0.09779154,95722.0,95721.0,0.166]
[1733209186818,0.0016,95722.0,95721.0,0.166]
[1733209187418,0.0016,95722.0,95720.0,0.07207496]
[1733209187616,0.0016,95722.0,95721.0,0.166]
[1733209187818,0.09779154,95722.0,95721.0,0.166]
[1733209189628,0.09679154,95722.0,95721.0,0.166]
[1733209190124,0.09679154,95722.0,95720.0,0.07207496]
[1733209190330,0.0006,95722.0,95721.0,0.166]
[1733209190726,0.0016,95722.0,95721.0,0.166]
[1733209191927,0.09779149,95722.0,95721.0,0.166]
[1733209192326,0.0016,95722.0,95721.0,0.166]
[1733209195130,0.0016,95722.0,95720.0,0.07207496]
[1733209195329,0.0016,95722.0,95721.0,0.16]
[1733209195520,0.09779265,95722.0,95721.0,0.16]
[1733209195920,0.0016,95722.0,95721.0,0.16]
[1733209196126,0.09779265,95722.0,95721.0,0.16]
[1733209196330,0.09679265,95722.0,95721.0,0.16]
[1733209197220,0.09779152,95722.0,95721.0,0.16]
[1733209200539,0.09779152,95722.0,95719.0,0.3608]
[1733209200540,0.052222,95721.0,95719.0,0.3608]
[1733209200837,0.0016,95722.0,95704.0,0.492031]
[1733209200838,0.052223,95719.0,95704.0,0.00064]
[1733209201023,0.052232,95703.0,95702.0,0.16]
[1733209201629,0.052232,95703.0,95700.0,0.02090739]
[1733209201630,0.3618,95720.0,95706.0,0.05223]
[1733209201823,0.3618,95720.0,95710.0,0.11432044]
[1733209201824,0.052226,95713.0,95710.0,0.11432044]
[1733209202030,0.052226,95713.0,95707.0,0.16]
[1733209202031,0.052226,95713.0,95707.0,0.212229]
[1733209202229,0.052229,95709.0,95707.0,0.16]
[1733209202432,0.052229,95709.0,95700.0,0.07314039]
[1733209202627,0.0323,95708.0,95701.0,0.16]
[1733209203041,0.0323,95708.0,95702.0,0.16]
[1733209203832,0.05223,95706.0,95702.0,0.16]
[1733209204026,0.0323,95708.0,95702.0,0.16]
[1733209204027,0.052231,95704.0,95702.0,0.16]
[1733209205642,0.052231,95704.0,95700.0,0.02590739]
[1733209205643,0.0323,95708.0,95700.0,0.02590739]
[1733209205841,0.11242635,95711.0,95701.0,0.16]
[1733209206026,0.052227,95711.0,95704.0,0.052231]
[1733209206337,0.36189,95712.0,95705.0,0.05223]
[1733209206725,0.36189,95712.0,95702.0,0.004]
[1733209206726,0.36189,95712.0,95707.0,0.052229]
[1733209206928,0.36189,95712.0,95711.0,0.052227]
[1733209207435,0.00109,95712.0,95711.0,0.052227]
[1733209208744,0.00109,95712.0,95711.0,0.491347]
[1733209209333,0.11241947,95724.0,95723.0,0.052221]
[1733209209535,0.11241947,95724.0,95723.0,0.573021]
[1733209210030,0.0157,95743.0,95723.0,0.5208]
[1733209210031,0.11241947,95733.0,95723.0,0.5208]
[1733209210238,0.052212,95739.0,95735.0,0.052214]
[1733209210438,0.052212,95739.0,95736.0,0.16]
[1733209210632,0.052213,95738.0,95736.0,0.16]